fUST/lending_fUST_20240721
["ID","MTS","AMOUNT","RATE_DAILY","PERIOD"]
[332738561,1721495450404,-507.45,0.00013972,2]
[332738562,1721495450413,-500.0,0.00013972,2]
[332738563,1721495450422,-1233.34,0.00013972,2]
[332738564,1721495450432,-539.10656031,0.00013972,2]
[332738565,1721495450442,-500.0,0.00013972,2]
[332738566,1721495450451,-5952.1,0.00013972,2]
[332738567,1721495450462,-500.0,0.00013972,2]
[332738568,1721495450473,-3305.45,0.00013972,2]
[332738569,1721495450484,-500.0,0.00013972,2]
[332738570,1721495450494,-1516.78,0.00013972,2]
[332738571,1721495450504,-500.0,0.00013972,2]
[332738572,1721495450513,-500.0,0.00013972,2]
[332738573,1721495450522,-500.0,0.00013972,2]
[332738574,1721495450533,-500.0,0.00013972,2]
[332738575,1721495450542,-520.92944104,0.00013972,2]
[332738576,1721495450552,-2954.47,0.00013972,2]
[332738577,1721495450562,-500.0,0.00013972,2]
[332738578,1721495450571,-500.0,0.00013972,2]
[332738579,1721495450581,-651.39,0.00013972,2]
[332738580,1721495450591,-1584.11,0.00013972,2]
[332738581,1721495450600,-503.08165892,0.00013972,2]
[332738582,1721495450609,-500.0,0.00013972,2]
[332738583,1721495450618,-2265.95,0.00013972,2]
[332738584,1721495450627,-12682.49,0.00013972,2]
[332738585,1721495450637,-3418.24,0.00013972,2]
[332738586,1721495450647,-521.18,0.00013972,2]
[332738587,1721495450656,-500.0,0.00013972,2]
[332738588,1721495450665,-500.0,0.00013972,2]
[332738589,1721495450675,-2217.87,0.00013972,2]
[332738590,1721495450684,-500.0,0.00013972,2]
[332738591,1721495450694,-656.34,0.00013972,2]
[332738592,1721495450703,-500.0,0.00013972,2]
[332738593,1721495450712,-500.0,0.00013972,2]
[332738594,1721495450721,-1029.51,0.00013972,2]
[332738595,1721495450730,-866.55,0.00013972,2]
[332738596,1721495450740,-641.37526896,0.00013972,2]
[332738597,1721495450749,-3098.58,0.00013972,2]
[332738598,1721495450759,-790.9,0.00013972,2]
[332738599,1721495450768,-500.0,0.00013972,2]
[332738600,1721495450777,-500.0,0.00013972,2]
[332738601,1721495450787,-1089.97,0.00013972,2]
[332738602,1721495450797,-500.0,0.00013972,2]
[332738603,1721495450807,-1176.31,0.00013972,2]
[332738604,1721495450819,-500.0,0.00013972,2]
[332738605,1721495450831,-500.0,0.00013972,2]
[332738606,1721495450843,-500.0,0.00013972,2]
[332738607,1721495450853,-500.0,0.00013972,2]
[332738608,1721495450864,-454.533744,0.00013972,2]
[332738609,1721495450875,-500.0,0.00013972,2]
[332738610,1721495450885,-454.533744,0.00013972,2]
[332738611,1721495450894,-500.0,0.00013972,2]
[332738612,1721495450903,-5072.01,0.00013972,2]
[332738613,1721495450912,-454.533744,0.00013972,2]
[332738614,1721495450922,-500.0,0.00013972,2]
[332738615,1721495450931,-500.0,0.00013972,2]
[332738616,1721495450940,-500.0,0.00013972,2]
[332738617,1721495450950,-454.533744,0.00013972,2]
[332738618,1721495450959,-1235.74,0.00013972,2]
[332738619,1721495450968,-973.92,0.00013972,2]
[332738620,1721495450977,-454.533744,0.00013972,2]
[332738621,1721495450986,-454.533744,0.00013972,2]
[332738622,1721495450996,-2791.66,0.00013972,2]
[332738623,1721495451005,-608.07,0.00013972,2]
[332738624,1721495451015,-1328.17,0.00013972,2]
[332738625,1721495451024,-807.74,0.00013972,2]
[332738626,1721495451034,-1298.2,0.00013972,2]
[332738627,1721495451043,-508.33268368,0.00013972,2]
[332738628,1721495451052,-500.0,0.00013972,2]
[332738629,1721495451061,-1667.58,0.00013972,2]
[332738630,1721495451071,-2403.89,0.00013972,2]
[332738631,1721495451080,-500.0,0.00013972,2]
[332738632,1721495451089,-500.0,0.00013972,2]
[332738633,1721495451099,-513.24561122,0.00013972,2]
[332738634,1721495451108,-3365.92,0.00013972,2]
[332738635,1721495451117,-500.0,0.00013972,2]
[332738636,1721495451127,-2321.22,0.00013972,2]
[332738637,1721495451137,-500.0,0.00013972,2]
[332738638,1721495451148,-10113.51,0.00013972,2]
[332738639,1721495451158,-500.0,0.00013972,2]
[332738640,1721495451169,-1648.27,0.00013972,2]
[332738641,1721495451179,-500.0,0.00013972,2]
[332738642,1721495451188,-1039.33,0.00013972,2]
[332738643,1721495451197,-500.0,0.00013972,2]
[332738644,1721495451207,-500.0,0.00013972,2]
[332738645,1721495451216,-500.0,0.00013972,2]
[332738646,1721495451225,-500.0,0.00013972,2]
[332738647,1721495451234,-1747.66,0.00013972,2]
[332738648,1721495451244,-3523.48,0.00013972,2]
[332738649,1721495451253,-500.0,0.00013972,2]
[332738650,1721495451263,-500.0,0.00013972,2]
[332738651,1721495451272,-500.0,0.00013972,2]
[332738652,1721495451281,-561.16,0.00013972,2]
[332738653,1721495451291,-500.0,0.00013972,2]
[332738654,1721495451300,-500.0,0.00013972,2]
[332738655,1721495451309,-15891.07,0.00013972,2]
[332738656,1721495451318,-2916.19,0.00013972,2]
[332738657,1721495451327,-500.0,0.00013972,2]
[332738658,1721495451337,-500.0,0.00013972,2]
[332738659,1721495451346,-515.92719608,0.00013972,2]
[332738660,1721495451355,-500.0,0.00013972,2]
[332738661,1721495451365,-500.0,0.00013972,2]
[332738662,1721495451374,-500.0,0.00013972,2]
[332738663,1721495451383,-588.66,0.00013972,2]
[332738664,1721495451393,-1835.91,0.00013972,2]
[332738665,1721495451402,-2727.13,0.00013972,2]
[332738666,1721495451412,-500.0,0.00013972,2]
[332738667,1721495451421,-827.11,0.00013972,2]
[332738668,1721495451430,-500.0,0.00013972,2]
[332738669,1721495451440,-500.0,0.00013972,2]
[332738670,1721495451449,-500.0,0.00013972,2]
[332738671,1721495451459,-882.34,0.00013972,2]
[332738672,1721495451468,-500.0,0.00013972,2]
[332738673,1721495451477,-500.0,0.00013972,2]
[332738674,1721495451491,-43680.81,0.00013972,2]
[332738675,1721495451500,-500.0,0.00013972,2]
[332738676,1721495451510,-517.24,0.00013972,2]
[332738677,1721495451520,-2182.36,0.00013972,2]
[332738678,1721495451531,-548.42,0.00013972,2]
[332738679,1721495451540,-519.98,0.00013972,2]
[332738680,1721495451550,-508.54564734,0.00013972,2]
[332738681,1721495451561,-500.0,0.00013972,2]
[332738682,1721495451571,-500.0,0.00013972,2]
[332738683,1721495451581,-500.0,0.00013972,2]
[332738684,1721495451590,-1364.06,0.00013972,2]
[332738685,1721495451600,-500.0,0.00013972,2]
[332738686,1721495451610,-500.0,0.00013972,2]
[332738687,1721495451620,-608.63406425,0.00013972,2]
[332738688,1721495451630,-500.0,0.00013972,2]
[332738689,1721495451639,-150.112233,0.00014,3]
[332738690,1721495451648,-150.112233,0.00014,4]
[332738691,1721495451658,-587.0,0.00014057,2]
[332738692,1721495451668,-150.112233,0.000141,2]
[332738693,1721495451679,-150.112233,0.000141,4]
[332738694,1721495451688,-806.5931156,0.00014103,2]
[332738695,1721495451698,-150.112233,0.000142,4]
[332738696,1721495451708,-500.0,0.00014246,2]
[332738697,1721495451717,-500.0,0.00014246,2]
[332738698,1721495451727,-889.18,0.00014246,2]
[332738699,1721495451736,-499.99859316,0.00014246,2]
[332738700,1721495451746,-500.0,0.00014246,2]
[332738701,1721495451756,-504.12320318,0.00014246,2]
[332738702,1721495451766,-500.0,0.00014246,2]
[332738703,1721495451776,-579.75,0.00014246,2]
[332738704,1721495451786,-2574.86,0.00014246,2]
[332738705,1721495451796,-500.0,0.00014246,2]
[332738706,1721495451806,-500.0,0.00014246,2]
[332738707,1721495451816,-500.0,0.00014246,2]
[332738708,1721495451827,-1060.88,0.00014246,2]
[332738709,1721495451837,-500.0,0.00014246,2]
[332738710,1721495451847,-500.0,0.00014246,2]
[332738711,1721495451857,-500.0,0.00014246,2]
[332738712,1721495451867,-500.0,0.00014246,2]
[332738713,1721495451877,-793.26,0.00014246,2]
[332738714,1721495451887,-500.0,0.00014246,2]
[332738715,1721495451897,-557.98,0.00014246,2]
[332738716,1721495451907,-500.0,0.00014246,2]
[332738717,1721495451916,-681.41,0.00014246,2]
[332738718,1721495451925,-1906.13,0.00014246,2]
[332738719,1721495451935,-1461.37,0.00014246,2]
[332738720,1721495451945,-500.0,0.00014246,2]
[332738721,1721495451954,-655.3,0.00014246,2]
[332738722,1721495451964,-957.74,0.00014246,2]
[332738723,1721495451974,-702.74,0.00014246,2]
[332738724,1721495451984,-500.0,0.00014246,2]
[332738725,1721495451994,-500.0,0.00014246,2]
[332738726,1721495452004,-307.19556289,0.00014246,2]
[332738727,1721495452015,-500.0,0.00014246,2]
[332738728,1721495452024,-500.0,0.00014246,2]
[332738729,1721495452033,-827.52,0.00014246,2]
[332738730,1721495452044,-595.62,0.00014246,2]
[332738731,1721495452054,-500.0,0.00014246,2]
[332738732,1721495452064,-500.0,0.00014246,2]
[332738733,1721495452073,-500.0,0.00014246,2]
[332738734,1721495452083,-1234.83,0.00014246,2]
[332738735,1721495452092,-500.0,0.00014246,2]
[332738736,1721495452101,-970.97,0.00014246,2]
[332738737,1721495452111,-500.0,0.00014246,2]
[332738738,1721495452121,-500.0,0.00014246,2]
[332738739,1721495452131,-568.34,0.00014246,2]
[332738740,1721495452141,-907.34,0.00014246,2]
[332738741,1721495452151,-500.0,0.00014246,2]
[332738742,1721495452161,-765.68,0.00014246,2]
[332738743,1721495452171,-793.84,0.00014246,2]
[332738744,1721495452180,-893.24,0.00014246,2]
[332738745,1721495452190,-560.72,0.00014246,2]
[332738746,1721495452199,-551.25,0.00014246,2]
[332738747,1721495452209,-500.0,0.00014246,2]
[332738748,1721495452219,-747.98,0.00014246,2]
[332738749,1721495452229,-1642.46,0.00014246,2]
[332738750,1721495452238,-602.62,0.00014246,2]
[332738751,1721495452249,-500.0,0.00014246,2]
[332738752,1721495452258,-500.0,0.00014246,2]
[332738753,1721495452269,-3339.07,0.00014246,2]
[332738754,1721495452279,-2704.37,0.00014246,2]
[332738755,1721495452290,-967.49,0.00014246,2]
[332738756,1721495452300,-572.41582763,0.00014246,2]
[332738757,1721495452309,-2063.11,0.00014246,2]
[332738758,1721495452319,-844.33,0.00014246,2]
[332738759,1721495452328,-2235.94,0.00014246,2]
[332738760,1721495452338,-500.0,0.00014246,2]
[332738761,1721495452348,-763.24,0.00014246,2]
[332738762,1721495452358,-967.19,0.00014246,2]
[332738763,1721495452368,-500.0,0.00014246,2]
[332738764,1721495452377,-500.0,0.00014246,2]
[332738765,1721495452387,-500.0,0.00014246,2]
[332738766,1721495452396,-600.07,0.00014246,2]
[332738767,1721495452406,-635.32,0.00014246,2]
[332738768,1721495452415,-1088.88,0.00014246,2]
[332738769,1721495452425,-500.0,0.00014246,2]
[332738770,1721495452435,-582.59,0.00014246,2]
[332738771,1721495452445,-500.0,0.00014246,2]
[332738772,1721495452454,-1074.71,0.00014246,2]
[332738773,1721495452464,-500.0,0.00014246,2]
[332738774,1721495452474,-557.2,0.00014246,2]
[332738775,1721495452489,-500.0,0.00014246,2]
[332738776,1721495452499,-503.98,0.00014246,2]
[332738777,1721495452508,-554.63644339,0.00014246,2]
[332738778,1721495452518,-500.0,0.00014246,2]
[332738779,1721495452528,-720.23,0.00014246,2]
[332738780,1721495452539,-500.0,0.00014246,2]
[332738781,1721495452548,-500.0,0.00014246,2]
[332738782,1721495452557,-513.99920471,0.00014246,2]
[332738783,1721495452568,-500.0,0.00014246,2]
[332738784,1721495452578,-500.0,0.00014246,2]
[332738785,1721495452588,-534.11,0.00014246,2]
[332738786,1721495452597,-500.0,0.00014246,2]
[332738787,1721495452606,-500.0,0.00014246,2]
[332738788,1721495452616,-500.0,0.00014246,2]
[332738789,1721495452627,-3950.95,0.00014246,2]
[332738790,1721495452637,-500.0,0.00014246,2]
[332738791,1721495452646,-500.0,0.00014246,2]
[332738792,1721495452656,-549.98,0.00014246,2]
[332738793,1721495452666,-500.0,0.00014246,2]
[332738794,1721495452675,-1351.79,0.00014246,2]
[332738795,1721495452685,-500.0,0.00014246,2]
[332738796,1721495452695,-1135.29,0.00014246,2]
[332738797,1721495452705,-1851.86,0.00014246,2]
[332738798,1721495452714,-500.0,0.00014246,2]
[332738799,1721495452724,-500.0,0.00014246,2]
[332738800,1721495452734,-550.86,0.00014246,2]
[332738801,1721495452744,-500.0,0.00014246,2]
[332738802,1721495452754,-500.0,0.00014246,2]
[332738803,1721495452764,-500.0,0.00014246,2]
[332738804,1721495452774,-500.0,0.00014246,2]
[332738805,1721495452784,-500.0,0.00014246,2]
[332738806,1721495452793,-500.0,0.00014246,2]
[332738807,1721495452803,-543.13,0.00014246,2]
[332738808,1721495452813,-634.39,0.00014246,2]
[332738809,1721495452823,-1832.54,0.00014246,2]
[332738810,1721495452833,-689.47,0.00014246,2]
[332738811,1721495452843,-1204.68,0.00014246,2]
[332738812,1721495452852,-994.69,0.00014246,2]
[332738813,1721495452863,-500.0,0.00014246,2]
[332738814,1721495452872,-500.0,0.00014246,2]
[332738815,1721495452882,-500.0,0.00014246,2]
[332738816,1721495452891,-500.0,0.00014246,2]
[332738817,1721495452901,-500.0,0.00014246,2]
[332738818,1721495452910,-785.88,0.00014246,2]
[332738819,1721495452920,-500.0,0.00014246,2]
[332738820,1721495452930,-500.0,0.00014246,2]
[332738821,1721495452939,-500.0,0.00014246,2]
[332738822,1721495452948,-500.0,0.00014246,2]
[332738823,1721495452958,-500.0,0.00014246,2]
[332738824,1721495452968,-500.0,0.00014246,2]
[332738825,1721495452978,-533.52163942,0.00014246,2]
[332738826,1721495452987,-500.0,0.00014246,2]
[332738827,1721495452998,-150.0,0.00014246,2]
[332738828,1721495453009,-500.0,0.00014246,2]
[332738829,1721495453021,-500.0,0.00014246,2]
[332738830,1721495453031,-2734.53,0.00014246,2]
[332738831,1721495453040,-960.34,0.00014246,2]
[332738832,1721495453050,-514.16,0.00014246,2]
[332738833,1721495453059,-320.7322929,0.00014246,2]
[332738834,1721495453069,-1811.71,0.00014246,2]
[332738835,1721495453078,-500.0,0.00014246,2]
[332738836,1721495453087,-500.0,0.00014246,2]
[332738837,1721495453097,-500.0,0.00014246,2]
[332738838,1721495453107,-500.0,0.00014246,2]
[332738839,1721495453118,-500.0,0.00014246,2]
[332738840,1721495453129,-500.0,0.00014246,2]
[332738841,1721495453139,-500.0,0.00014246,2]
[332738842,1721495453148,-500.0,0.00014246,2]
[332738843,1721495453158,-2140.25,0.00014246,2]
[332738844,1721495453167,-255.62,0.00014246,2]
[332738845,1721495453177,-500.0,0.00014246,2]
[332738846,1721495453187,-500.0,0.00014246,2]
[332738847,1721495453196,-2061.29,0.00014246,2]
[332738848,1721495453206,-522.39,0.00014246,2]
[332738849,1721495453216,-315.09393361,0.00014246,2]
[332738850,1721495453226,-562.25,0.00014246,2]
[332738851,1721495453235,-500.0,0.00014246,2]
[332738852,1721495453250,-500.0,0.00014246,2]
[332738853,1721495453260,-729.09,0.00014246,2]
[332738854,1721495453272,-500.0,0.00014246,2]
[332738855,1721495453282,-1451.7,0.00014246,2]
[332738856,1721495453292,-500.0,0.00014246,2]
[332738857,1721495453302,-510.31,0.00014246,2]
[332738858,1721495453312,-500.0,0.00014246,2]
[332738859,1721495453322,-500.0,0.00014246,2]
[332738860,1721495453332,-500.0,0.00014246,2]
[332738861,1721495453342,-610.22013749,0.00014246,2]
[332738862,1721495453352,-1409.51,0.00014246,2]
[332738863,1721495453362,-182.45544952,0.00014246,2]
[332738864,1721495453371,-2212.42,0.00014246,2]
[332738865,1721495453381,-973.63,0.00014246,2]
[332738866,1721495453392,-1857.09,0.00014246,2]
[332738867,1721495453402,-597.72,0.00014246,2]
[332738868,1721495453413,-570.59373138,0.00014246,2]
[332738869,1721495453423,-944.13,0.00014246,2]
[332738870,1721495453433,-500.0,0.00014246,2]
[332738871,1721495453443,-500.0,0.00014246,2]
[332738872,1721495453453,-637.53893582,0.00014246,2]
[332738873,1721495453463,-500.0,0.00014246,2]
[332738874,1721495453474,-797.1,0.00014246,2]
[332738875,1721495453489,-500.0,0.00014246,2]
[332738876,1721495453500,-1950.43,0.00014246,2]
[332738877,1721495453510,-500.0,0.00014246,2]
[332738878,1721495453520,-1096.08,0.00014246,2]
[332738879,1721495453531,-2028.85,0.00014246,2]
[332738880,1721495453540,-1564.09,0.00014246,2]
[332738881,1721495453551,-708.33,0.00014246,2]
[332738882,1721495453563,-710.15,0.00014246,2]
[332738883,1721495453573,-500.0,0.00014246,2]
[332738884,1721495453584,-500.0,0.00014246,2]
[332738885,1721495453596,-9697.8,0.00014246,2]
[332738886,1721495453606,-500.0,0.00014246,2]
[332738887,1721495453616,-1045.37,0.00014246,2]
[332738888,1721495453626,-848.68,0.00014246,2]
[332738889,1721495453637,-500.0,0.00014246,2]
[332738890,1721495453647,-2079.26,0.00014246,2]
[332738891,1721495453659,-500.0,0.00014246,2]
[332738892,1721495453669,-500.0,0.00014246,2]
[332738893,1721495453679,-5198.9,0.00014246,2]
[332738894,1721495453690,-755.78,0.00014246,2]
[332738895,1721495453700,-641.85,0.00014246,2]
[332738896,1721495453711,-3044.88,0.00014246,2]
[332738897,1721495453722,-688.33,0.00014246,2]
[332738898,1721495453733,-1185.26,0.00014246,2]
[332738899,1721495453745,-1354.73,0.00014246,2]
[332738900,1721495453756,-2207.73,0.00014246,2]
[332738901,1721495453766,-2525.7,0.00014246,2]
[332738902,1721495453778,-500.0,0.00014246,2]
[332738903,1721495453789,-3650.95,0.00014246,2]
[332738904,1721495453800,-500.0,0.00014246,2]
[332738905,1721495453810,-500.0,0.00014246,2]
[332738906,1721495453821,-749.13,0.00014246,2]
[332738907,1721495453831,-500.0,0.00014246,2]
[332738908,1721495453841,-787.24,0.00014246,2]
[332738909,1721495453851,-2474.72,0.00014246,2]
[332738910,1721495453862,-500.0,0.00014246,2]
[332738911,1721495453872,-558.71,0.00014246,2]
[332738912,1721495453883,-500.0,0.00014246,2]
[332738913,1721495453895,-500.0,0.00014246,2]
[332738914,1721495453907,-500.0,0.00014246,2]
[332738915,1721495453917,-5897.15,0.00014246,2]
[332738916,1721495453927,-668.72,0.00014246,2]
[332738917,1721495453937,-3713.23,0.00014246,2]
[332738918,1721495453948,-673.52,0.00014246,2]
[332738919,1721495453959,-3061.24,0.00014246,2]
[332738920,1721495453970,-2292.59,0.00014246,2]
[332738921,1721495453980,-1125.6,0.00014246,2]
[332738922,1721495453995,-500.0,0.00014246,2]
[332738923,1721495454005,-521.4783236,0.00014246,2]
[332738924,1721495454017,-1737.87,0.00014246,2]
[332738925,1721495454027,-500.0,0.00014246,2]
[332738926,1721495454037,-634.59,0.00014246,2]
[332738927,1721495454047,-630.64,0.00014246,2]
[332738928,1721495454058,-620.22,0.00014246,2]
[332738929,1721495454069,-1278.3,0.00014246,2]
[332738930,1721495454081,-4000.88,0.00014246,2]
[332738931,1721495454093,-500.0,0.00014246,2]
[332738932,1721495454105,-2587.87,0.00014246,2]
[332738933,1721495454115,-500.0,0.00014246,2]
[332738934,1721495454125,-938.51,0.00014246,2]
[332738935,1721495454135,-1173.85,0.00014246,2]
[332738936,1721495454144,-500.0,0.00014246,2]
[332738937,1721495454155,-351.71501332,0.00014246,2]
[332738938,1721495454165,-500.0,0.00014246,2]
[332738939,1721495454175,-663.63,0.00014246,2]
[332738940,1721495454185,-500.0,0.00014246,2]
[332738941,1721495454195,-2018.48,0.00014246,2]
[332738942,1721495454205,-500.0,0.00014246,2]
[332738943,1721495454215,-500.0,0.00014246,2]
[332738944,1721495454225,-500.0,0.00014246,2]
[332738945,1721495454235,-723.99,0.00014246,2]
[332738946,1721495454245,-500.0,0.00014246,2]
[332738947,1721495454255,-251.91577685,0.00014246,2]
[332738948,1721495454265,-554.02,0.00014246,2]
[332738949,1721495454275,-2965.8,0.00014246,2]
[332738950,1721495454286,-7880.53,0.00014246,2]
[332738951,1721495454297,-531.42,0.00014246,2]
[332738952,1721495454307,-974.25,0.00014246,2]
[332738953,1721495454317,-4375.62,0.00014246,2]
[332738954,1721495454329,-1908.47,0.00014246,2]
[332738955,1721495454339,-500.0,0.00014246,2]
[332738956,1721495454349,-3157.07,0.00014246,2]
[332738957,1721495454360,-509.32,0.00014246,2]
[332738958,1721495454371,-500.0,0.00014246,2]
[332738959,1721495454382,-20147.95,0.00014246,2]
[332738960,1721495454393,-2383.38,0.00014246,2]
[332738961,1721495454403,-1272.38,0.00014246,2]
[332738962,1721495454413,-886.97,0.00014246,2]
[332738963,1721495454423,-797.94,0.00014246,2]
[332738964,1721495454433,-500.0,0.00014246,2]
[332738965,1721495454443,-679.57,0.00014246,2]
[332738966,1721495454454,-507.45,0.00014246,2]
[332738967,1721495454464,-1233.34,0.00014246,2]
[332738968,1721495454474,-5952.1,0.00014246,2]
[332738969,1721495454491,-500.0,0.00014246,2]
[332738970,1721495454502,-3305.45,0.00014246,2]
[332738971,1721495454512,-500.0,0.00014246,2]
[332738972,1721495454526,-1516.78,0.00014246,2]
[332738973,1721495454538,-500.0,0.00014246,2]
[332738974,1721495454548,-500.0,0.00014246,2]
[332738975,1721495454560,-500.0,0.00014246,2]
[332738976,1721495454572,-500.0,0.00014246,2]
[332738977,1721495454583,-2954.47,0.00014246,2]
[332738978,1721495454593,-500.0,0.00014246,2]
[332738979,1721495454604,-500.0,0.00014246,2]
[332738980,1721495454615,-651.39,0.00014246,2]
[332738981,1721495454625,-1584.11,0.00014246,2]
[332738982,1721495454635,-500.0,0.00014246,2]
[332738983,1721495454645,-2265.95,0.00014246,2]
[332738984,1721495454655,-3418.24,0.00014246,2]
[332738985,1721495454665,-12682.49,0.00014246,2]
[332738986,1721495454676,-521.18,0.00014246,2]
[332738987,1721495454686,-500.0,0.00014246,2]
[332738988,1721495454698,-500.0,0.00014246,2]
[332738989,1721495454710,-2217.87,0.00014246,2]
[332738990,1721495454721,-500.0,0.00014246,2]
[332738991,1721495454731,-656.34,0.00014246,2]
[332738992,1721495454743,-562.63316697,0.00014246,2]
[332738993,1721495454753,-500.0,0.00014246,2]
[332738994,1721495454762,-1029.51,0.00014246,2]
[332738995,1721495454773,-866.55,0.00014246,2]
[332738996,1721495454783,-3098.58,0.00014246,2]
[332738997,1721495454793,-790.9,0.00014246,2]
[332738998,1721495454803,-601.67470916,0.00014246,2]
[332738999,1721495454813,-500.0,0.00014246,2]
[332739000,1721495454823,-1089.97,0.00014246,2]
[332739001,1721495454834,-453.62559309,0.00014246,2]
[332739002,1721495454844,-1176.31,0.00014246,2]
[332739003,1721495454855,-557.1609449,0.00014246,2]
[332739004,1721495454865,-500.0,0.00014246,2]
[332739005,1721495454875,-500.0,0.00014246,2]
[332739006,1721495454887,-507.40824382,0.00014246,2]
[332739007,1721495454898,-500.0,0.00014246,2]
[332739008,1721495454908,-500.0,0.00014246,2]
[332739009,1721495454918,-5072.01,0.00014246,2]
[332739010,1721495454930,-454.533744,0.00014246,2]
[332739011,1721495454940,-454.533744,0.00014246,2]
[332739012,1721495454950,-454.533744,0.00014246,2]
[332739013,1721495454959,-500.0,0.00014246,2]
[332739014,1721495454970,-500.0,0.00014246,2]
[332739015,1721495454980,-157.78037707,0.00014246,2]
[332739016,1721495454991,-973.92,0.00014246,2]
[332739017,1721495455000,-1235.74,0.00014246,2]
[332739018,1721495455010,-454.533744,0.00014246,2]
[332739019,1721495455021,-454.533744,0.00014246,2]
[332739020,1721495455031,-2791.66,0.00014246,2]
[332739021,1721495455042,-454.533744,0.00014246,2]
[332739022,1721495455053,-608.07,0.00014246,2]
[332739023,1721495455064,-1328.17,0.00014246,2]
[332739024,1721495455076,-807.74,0.00014246,2]
[332739025,1721495455087,-1298.2,0.00014246,2]
[332739026,1721495455098,-500.0,0.00014246,2]
[332739027,1721495455109,-1667.58,0.00014246,2]
[332739028,1721495455121,-2403.89,0.00014246,2]
[332739029,1721495455132,-500.0,0.00014246,2]
[332739030,1721495455142,-421.88467126,0.00014246,2]
[332739031,1721495455152,-3365.92,0.00014246,2]
[332739032,1721495455163,-500.0,0.00014246,2]
[332739033,1721495455173,-2321.22,0.00014246,2]
[332739034,1721495455183,-500.0,0.00014246,2]
[332739035,1721495455193,-10113.51,0.00014246,2]
[332739036,1721495455203,-500.0,0.00014246,2]
[332739037,1721495455214,-1648.27,0.00014246,2]
[332739038,1721495455224,-500.0,0.00014246,2]
[332739039,1721495455235,-1039.33,0.00014246,2]
[332739040,1721495455247,-500.0,0.00014246,2]
[332739041,1721495455257,-500.0,0.00014246,2]
[332739042,1721495455266,-500.0,0.00014246,2]
[332739043,1721495455276,-500.0,0.00014246,2]
[332739044,1721495455286,-1747.66,0.00014246,2]
[332739045,1721495455297,-3523.48,0.00014246,2]
[332739046,1721495455308,-500.0,0.00014246,2]
[332739047,1721495455318,-500.0,0.00014246,2]
[332739048,1721495455330,-560.73301691,0.00014246,2]
[332739049,1721495455340,-561.16,0.00014246,2]
[332739050,1721495455350,-500.0,0.00014246,2]
[332739051,1721495455360,-500.0,0.00014246,2]
[332739052,1721495455369,-15891.07,0.00014246,2]
[332739053,1721495455381,-500.0,0.00014246,2]
[332739054,1721495455393,-2916.19,0.00014246,2]
[332739055,1721495455403,-500.0,0.00014246,2]
[332739056,1721495455412,-500.0,0.00014246,2]
[332739057,1721495455422,-500.0,0.00014246,2]
[332739058,1721495455431,-500.0,0.00014246,2]
[332739059,1721495455441,-588.66,0.00014246,2]
[332739060,1721495455451,-1835.91,0.00014246,2]